[Event "XI Paracin Festival 2018"]
[Site "Paracin"]
[Date "2018.07.09"]
[Round "4"]
[White "Peng, Shunkai"]
[Black "Kosic, Dragan"]
[Result "1/2-1/2"]
[ECO "C07"]
[WhiteElo "2390"]
[BlackElo "2463"]
[Annotator "ChessBase"]
[PlyCount "39"]
[EventDate "2018.07.06"]
[EventType "swiss"]
[EventCountry "SRB"]
[SourceTitle "playchess.com"]
[Source "ChessBase"]
[SourceQuality "1"]
[TimeControl "5400+30"]

1. e4 {[%emt 0:00:00]} e6 {[%emt 0:00:00]} 2. d4 {[%emt 0:01:00]} d5 {[%emt 0:01:37]} 3. Nd2 {[%emt 0:01:43]} c5 {[%emt 0:00:18]} 4. exd5 {[%emt 0:00:18]} Qxd5 {[%emt 0:00:14]} 5. Ngf3 {[%emt 0:00:27]} cxd4 {[%emt 0:00:09]} 6. Bc4 {[%emt 0:00:10]} Qd6 {[%emt 0:00:07]} 7. O-O {[%emt 0:00:27]} Nf6 {[%emt 0:00:05]} 8. Nb3 {[%emt 0:00:17]} Nc6 {[%emt 0:00:09]} 9. Nbxd4 {[%emt 0:00:11]} Nxd4 {[%emt 0:00:08]} 10. Nxd4 {[%emt 0:00:16]} Be7 {[%emt 0:00:09]} 11. c3 {[%emt 0:09:39]} O-O {[%emt 0:00:39]} 12. Qe2 {[%emt 0:02:36]} Bd7 {[%emt 0:00:58]} 13. Bg5 {[%emt 0:01:32]} Qc7 {[%emt 0:04:43]} 14. Bh4 {[%emt 0:02:59]} Nd5 {[%emt 0:05:47]} 15. Bxe7 {[%emt 0:07:59]} Nxe7 {[%emt 0:01:22]} 16. Rfe1 {[%emt 0:00:25]} Rac8 {[%emt 0:01:49]} 17. Bb3 {[%emt 0:00:36]} a6 {[%emt 0:02:12]} 18. Rad1 {[%emt 0:01:56]} Ng6 {[%emt 0:00:18]} 19. Qe4 {[%emt 0:01:36]} Rfd8 {[%emt 0:05:28]} 20. h4 {[%emt 0:08:26]} 1/2-1/2

[Event "XI Paracin Festival 2018"]
[Site "Paracin"]
[Date "2018.07.09"]
[Round "4"]
[White "Brankovic, Dejan"]
[Black "Popovic, Milan S"]
[Result "1/2-1/2"]
[ECO "B07"]
[WhiteElo "2377"]
[BlackElo "2264"]
[Annotator "NA"]
[PlyCount "56"]
[EventDate "2018.07.06"]
[EventType "swiss"]
[EventCountry "SRB"]
[SourceTitle "playchess.com"]
[Source "ChessBase"]
[SourceQuality "1"]
[TimeControl "5400+30"]

1. e4 {[%emt 0:00:00]} d6 {[%emt 0:00:00]} 2. d4 {[%emt 0:00:04]} Nf6 {[%emt 0:00:00]} 3. Nc3 {[%emt 0:00:14]} e5 {[%emt 0:00:00]} 4. dxe5 {[%emt 0:01:57]} dxe5 {[%emt 0:00:00]} 5. Qxd8+ {[%emt 0:00:08]} Kxd8 {[%emt 0:00:00]} 6. Bg5 {[%emt 0:00:23]} c6 {[%emt 0:00:04]} 7. O-O-O+ {[%emt 0:01:14]} Ke8 {[%emt 0:00:08]} 8. Nf3 {[%emt 0:01:32]} Nbd7 {[%emt 0:00:24]} 9. Bh4 {[%emt 0:01:17]} Bb4 {[%emt 0:02:32]} 10. Bc4 {[%emt 0:00:16]} Ba5 {[%emt 0:04:56]} 11. a3 {[%emt 0:02:19]} Bc7 {[%emt 0:06:48]} 12. Nd2 {[%emt 0:18:04]} Nf8 {[%emt 0:38:28]} 13. f3 {[%emt 0:10:29]} Ng6 {[%emt 0:03:41]} 14. Bf2 {[%emt 0:02:13]} Nd7 {[%emt 0:13:08]} 15. h4 {[%emt 0:30:49]} h5 {[%emt 0:02:24]} 16. Nf1 {[%emt 0:02:02]} Bb6 {[%emt 0:01:43]} 17. Bxb6 {[%emt 0:00:45]} Nxb6 {[%emt 0:00:31]} 18. Ba2 {[%emt 0:04:21]} Nf8 {[%emt 0:05:05]} 19. Ne3 {[%emt 0:00:26]} g6 {[%emt 0:00:41]} 20. Nb1 {[%emt 0:06:37]} Ke7 {[%emt 0:02:28]} 21. Nd2 {[%emt 0:00:48]} f6 {[%emt 0:00:40]} 22. Kb1 {[%emt 0:01:22]} Be6 {[%emt 0:02:40]} 23. Bxe6 {[%emt 0:01:31]} Nxe6 {[%emt 0:00:07]} 24. Nb3 {[%emt 0:00:12]} a5 {[%emt 0:02:53]} 25. Rd2 {[%emt 0:01:55]} a4 {[%emt 0:01:43]} 26. Nc1 {[%emt 0:00:05]} Rhd8 {[%emt 0:01:26]} 27. Rhd1 {[%emt 0:01:04]} Rxd2 {[%emt 0:01:29]} 28. Rxd2 {[%emt 0:00:06]} Nc5 {[%emt 0:01:08]} 1/2-1/2

[Event "XI Paracin Festival 2018"]
[Site "Paracin"]
[Date "2018.07.09"]
[Round "4"]
[White "Wadsworth, Matthew J"]
[Black "Damljanovic, Branko"]
[Result "1-0"]
[ECO "A20"]
[WhiteElo "2377"]
[BlackElo "2508"]
[Annotator "ChessBase"]
[PlyCount "131"]
[EventDate "2018.07.06"]
[EventType "swiss"]
[EventCountry "SRB"]
[SourceTitle "playchess.com"]
[Source "ChessBase"]
[SourceQuality "1"]
[TimeControl "5400+30"]

1. c4 {[%emt 0:00:00]} e5 {[%emt 0:05:25]} 2. g3 {[%emt 0:01:30]} Nf6 {[%emt 0:00:09]} 3. Bg2 {[%emt 0:00:05]} c6 {[%emt 0:03:29]} 4. d4 {[%emt 0:00:23]} e4 {[%emt 0:00:07]} 5. Nc3 {[%emt 0:02:46]} d5 {[%emt 0:00:11]} 6. cxd5 {[%emt 0:00:56]} cxd5 {[%emt 0:00:02]} 7. Bg5 {[%emt 0:00:11]} Bb4 {[%emt 0:00:07]} 8. Rc1 {[%emt 0:07:33]} Nc6 {[%emt 0:02:29]} 9. Nh3 {[%emt 0:00:53]} Bxh3 {[%emt 0:04:35]} 10. Bxh3 {[%emt 0:00:58]} h6 {[%emt 0:01:03]} 11. Bxf6 {[%emt 0:01:56]} Qxf6 {[%emt 0:00:02]} 12. O-O {[%emt 0:00:12]} Rd8 {[%emt 0:01:06]} 13. e3 {[%emt 0:02:06]} O-O {[%emt 0:20:59]} 14. Qb3 {[%emt 0:07:12]} Qd6 {[%emt 0:04:56]} 15. Na4 {[%emt 0:02:29]} Na5 {[%emt 0:01:34]} 16. Qd1 {[%emt 0:02:40]} Nc4 {[%emt 0:03:44]} 17. a3 {[%emt 0:03:00]} Ba5 {[%emt 0:02:09]} 18. Nc5 {[%emt 0:02:33]} Qe7 {[%emt 0:06:08]} 19. Rc2 {[%emt 0:00:45]} b6 {[%emt 0:06:11]} 20. Nb3 {[%emt 0:01:35]} f5 {[%emt 0:02:55]} 21. Qh5 {[%emt 0:07:36]} Qe6 {[%emt 0:15:37]} 22. Rfc1 {[%emt 0:01:43]} Kh7 {[%emt 0:04:31]} 23. Nxa5 {[%emt 0:03:54]} Nxa5 {[%emt 0:01:14]} 24. Rc7 {[%emt 0:03:21]} Rd7 {[%emt 0:03:17]} 25. Bf1 {[%emt 0:03:15]} g6 {[%emt 0:04:59]} 26. Qd1 {[%emt 0:00:10]} Rxc7 {[%emt 0:00:07]} 27. Rxc7+ {[%emt 0:00:30]} Rf7 {[%emt 0:00:05]} 28. Qc2 {[%emt 0:02:07]} Kg7 {[%emt 0:03:00]} 29. Rc3 {[%emt 0:05:36]} Nb7 {[%emt 0:01:01]} 30. Rc6 {[%emt 0:01:01]} Qe7 {[%emt 0:00:12]} 31. b4 {[%emt 0:03:40]} Qd7 {[%emt 0:02:09]} 32. b5 {[%emt 0:08:42]} Nd6 {[%emt 0:00:14]} 33. Qb3 {[%emt 0:00:49]} Ne8 {[%emt 0:00:03]} 34. Be2 {[%emt 0:04:55]} Qd8 {[%emt 0:00:34]} 35. Qc3 {[%emt 0:00:59]} Qd7 {[%emt 0:00:46]} 36. a4 {[%emt 0:00:29]} Nf6 {[%emt 0:00:41]} 37. a5 {[%emt 0:01:25]} bxa5 {[%emt 0:00:02]} 38. Qxa5 {[%emt 0:00:05]} g5 {[%emt 0:00:07]} 39. Qa6 {[%emt 0:07:59]} f4 {[%emt 0:01:38]} 40. gxf4 {[%emt 0:00:20]} gxf4 {[%emt 0:00:16]} 41. Qc8 {[%emt 0:00:01]} f3 {[%emt 0:00:38]} 42. Qxd7 {[%emt 0:01:27]} Rxd7 {[%emt 0:00:09]} 43. Bf1 {[%emt 0:00:03]} Kf7 {[%emt 0:00:33]} 44. Bh3 {[%emt 0:00:32]} Rb7 {[%emt 0:00:05]} 45. Rc5 {[%emt 0:00:13]} Ke7 {[%emt 0:00:24]} 46. Bc8 {[%emt 0:00:50]} Rb8 {[%emt 0:00:16]} 47. h3 {[%emt 0:00:27]} h5 {[%emt 0:02:50]} 48. h4 {[%emt 0:02:32]} Rb6 {[%emt 0:00:16]} 49. Kh2 {[%emt 0:00:29]} Kd6 {[%emt 0:00:44]} 50. Bf5 {[%emt 0:05:46]} a6 {[%emt 0:00:32]} 51. bxa6 {[%emt 0:00:20]} Rxa6 {[%emt 0:00:00]} 52. Rc2 {[%emt 0:00:19]} Ra1 {[%emt 0:00:04]} 53. Rb2 {[%emt 0:01:05]} Ra7 {[%emt 0:01:23]} 54. Rb6+ {[%emt 0:00:49]} Ke7 {[%emt 0:00:00]} 55. Kg3 {[%emt 0:00:46]} Ra2 {[%emt 0:00:24]} 56. Rb7+ {[%emt 0:00:46]} Kf8 {[%emt 0:00:01]} 57. Be6 {[%emt 0:01:15]} Ke8 {[%emt 0:00:02]} 58. Rb5 {[%emt 0:00:34]} Ra1 {[%emt 0:00:20]} 59. Bxd5 {[%emt 0:00:52]} Rg1+ {[%emt 0:01:08]} 60. Kf4 {[%emt 0:00:01]} Rg2 {[%emt 0:00:06]} 61. Bxe4 {[%emt 0:01:18]} Rg4+ {[%emt 0:02:06]} 62. Kf5 {[%emt 0:00:01]} Nxe4 {[%emt 0:00:30]} 63. Re5+ {[%emt 0:00:02]} Kd7 {[%emt 0:00:07]} 64. Rxe4 {[%emt 0:00:03]} Rg2 {[%emt 0:00:02]} 65. Rf4 {[%emt 0:00:45]} Rxf2 {[%emt 0:00:01]} 66. Ke4 {[%emt 0:00:08]} 1-0

[Event "XI Paracin Festival 2018"]
[Site "Paracin"]
[Date "2018.07.09"]
[Round "4"]
[White "Tomic, Aleksandar"]
[Black "Bratkovic, Jakob"]
[Result "1-0"]
[ECO "A45"]
[WhiteElo "2347"]
[BlackElo "2253"]
[Annotator "NA"]
[PlyCount "81"]
[EventDate "2018.07.06"]
[EventType "swiss"]
[EventCountry "SRB"]
[SourceTitle "playchess.com"]
[Source "ChessBase"]
[SourceQuality "1"]
[TimeControl "5400+30"]

1. d4 {[%emt 0:00:09]} Nf6 {[%emt 0:03:11]} 2. Bg5 {[%emt 0:01:07]} e6 {[%emt 0:00:06]} 3. e4 {[%emt 0:00:22]} h6 {[%emt 0:00:07]} 4. Bxf6 {[%emt 0:00:11]} Qxf6 {[%emt 0:00:12]} 5. c3 {[%emt 0:00:38]} d6 {[%emt 0:00:20]} 6. Bd3 {[%emt 0:00:14]} g6 {[%emt 0:00:36]} 7. Ne2 {[%emt 0:00:26]} e5 {[%emt 0:00:07]} 8. O-O {[%emt 0:00:30]} Bg7 {[%emt 0:00:15]} 9. f4 {[%emt 0:01:46]} Qe7 {[%emt 0:00:06]} 10. f5 {[%emt 0:10:04]} O-O {[%emt 0:07:14]} 11. Kh1 {[%emt 0:08:46]} Nd7 {[%emt 0:18:56]} 12. Nd2 {[%emt 0:18:59]} exd4 {[%emt 0:17:22]} 13. cxd4 {[%emt 0:02:04]} c5 {[%emt 0:00:45]} 14. fxg6 {[%emt 0:05:43]} fxg6 {[%emt 0:00:47]} 15. Qb3+ {[%emt 0:02:31]} Kh7 {[%emt 0:02:18]} 16. e5 {[%emt 0:03:58]} cxd4 {[%emt 0:04:07]} 17. Bxg6+ {[%emt 0:02:13]} Kh8 {[%emt 0:00:47]} 18. Nxd4 {[%emt 0:01:45]} Qg5 {[%emt 0:10:00]} 19. Qc2 {[%emt 0:05:06]} Rxf1+ {[%emt 0:04:00]} 20. Rxf1 {[%emt 0:00:13]} Nxe5 {[%emt 0:00:13]} 21. Bf5 {[%emt 0:05:16]} Bxf5 {[%emt 0:05:06]} 22. Nxf5 {[%emt 0:00:33]} d5 {[%emt 0:09:14]} 23. h4 {[%emt 0:18:05]} Qf6 {[%emt 0:05:44]} 24. Qb3 {[%emt 0:01:55]} Nc4 {[%emt 0:02:34]} 25. Qxb7 {[%emt 0:01:24]} Rg8 {[%emt 0:03:29]} 26. Qxd5 {[%emt 0:01:13]} Rd8 {[%emt 0:01:42]} 27. Qxc4 {[%emt 0:00:23]} Rxd2 {[%emt 0:00:07]} 28. b4 {[%emt 0:03:30]} Qg6 {[%emt 0:02:40]} 29. Qc8+ {[%emt 0:00:40]} Kh7 {[%emt 0:00:15]} 30. Qb7 {[%emt 0:00:23]} Qf6 {[%emt 0:00:47]} 31. Qxa7 {[%emt 0:00:42]} Rd1 {[%emt 0:00:42]} 32. Rxd1 {[%emt 0:00:29]} Qxf5 {[%emt 0:00:04]} 33. Qe3 {[%emt 0:00:57]} Qg4 {[%emt 0:00:48]} 34. Qd3+ {[%emt 0:00:33]} Kh8 {[%emt 0:00:05]} 35. Qd8+ {[%emt 0:00:33]} Kh7 {[%emt 0:00:03]} 36. b5 {[%emt 0:00:17]} Kg6 {[%emt 0:00:48]} 37. b6 {[%emt 0:00:39]} Kh5 {[%emt 0:00:10]} 38. b7 {[%emt 0:00:54]} Be5 {[%emt 0:00:04]} 39. Qe8+ {[%emt 0:01:31]} Kxh4 {[%emt 0:00:20]} 40. Qxe5 {[%emt 0:00:25]} Qxd1+ {[%emt 0:00:05]} 41. Kh2 {[%emt 0:00:06]} 1-0

[Event "XI Paracin Festival 2018"]
[Site "Paracin"]
[Date "2018.07.09"]
[Round "4"]
[White "Kulkarni, Chinmay"]
[Black "Eswaran, Ashritha"]
[Result "1-0"]
[ECO "B76"]
[WhiteElo "2336"]
[BlackElo "2092"]
[Annotator "NA"]
[PlyCount "69"]
[EventDate "2018.07.06"]
[EventType "swiss"]
[EventCountry "SRB"]
[SourceTitle "playchess.com"]
[Source "ChessBase"]
[SourceQuality "1"]
[TimeControl "5400+30"]

1. e4 {[%emt 0:00:00]} c5 {[%emt 0:00:00]} 2. Nf3 {[%emt 0:00:00]} d6 {[%emt 0:00:15]} 3. d4 {[%emt 0:00:00]} cxd4 {[%emt 0:00:15]} 4. Nxd4 {[%emt 0:00:00]} Nf6 {[%emt 0:00:09]} 5. Nc3 {[%emt 0:00:00]} g6 {[%emt 0:00:22]} 6. Be3 {[%emt 0:00:10]} Bg7 {[%emt 0:00:10]} 7. f3 {[%emt 0:00:08]} Nc6 {[%emt 0:00:38]} 8. Qd2 {[%emt 0:00:06]} O-O {[%emt 0:00:21]} 9. O-O-O {[%emt 0:00:09]} d5 {[%emt 0:00:44]} 10. Nxc6 {[%emt 0:00:23]} bxc6 {[%emt 0:00:09]} 11. Bh6 {[%emt 0:00:06]} Rb8 {[%emt 0:07:01]} 12. h4 {[%emt 0:03:16]} Qb6 {[%emt 0:04:15]} 13. b3 {[%emt 0:05:04]} Bxh6 {[%emt 0:14:33]} 14. Qxh6 {[%emt 0:00:32]} Qc5 {[%emt 0:00:09]} 15. Kb2 {[%emt 0:00:45]} dxe4 {[%emt 0:03:08]} 16. Qg5 {[%emt 0:01:04]} Qxg5 {[%emt 0:05:45]} 17. hxg5 {[%emt 0:00:07]} Nd5 {[%emt 0:00:07]} 18. Nxe4 {[%emt 0:02:53]} Bf5 {[%emt 0:04:12]} 19. Re1 {[%emt 0:01:10]} Rfe8 {[%emt 0:10:44]} 20. Nc5 {[%emt 0:07:50]} Rbd8 {[%emt 0:05:06]} 21. g4 {[%emt 0:01:39]} Bc8 {[%emt 0:00:35]} 22. Bc4 {[%emt 0:01:35]} Kg7 {[%emt 0:01:34]} 23. Re2 {[%emt 0:07:56]} Nb6 {[%emt 0:08:25]} 24. Bxf7 {[%emt 0:11:21]} Kxf7 {[%emt 0:02:43]} 25. Rxh7+ {[%emt 0:00:07]} Kf8 {[%emt 0:00:17]} 26. Reh2 {[%emt 0:00:22]} e5 {[%emt 0:00:28]} 27. Rxa7 {[%emt 0:00:18]} Nd7 {[%emt 0:06:10]} 28. Rh7 {[%emt 0:02:16]} Kg8 {[%emt 0:07:11]} 29. Nxd7 {[%emt 0:01:11]} Bxd7 {[%emt 0:00:22]} 30. Raxd7 {[%emt 0:00:48]} Rxd7 {[%emt 0:00:24]} 31. Rxd7 {[%emt 0:00:10]} e4 {[%emt 0:00:03]} 32. fxe4 {[%emt 0:00:19]} Rxe4 {[%emt 0:00:09]} 33. Rd6 {[%emt 0:00:13]} Kg7 {[%emt 0:00:14]} 34. Rxc6 {[%emt 0:00:07]} Rxg4 {[%emt 0:00:05]} 35. Rc5 {[%emt 0:00:06]} 1-0

[Event "XI Paracin Festival 2018"]
[Site "Paracin"]
[Date "2018.07.09"]
[Round "4"]
[White "Budisavljevic, Luka"]
[Black "Bojicic, Andjela"]
[Result "1/2-1/2"]
[ECO "A48"]
[WhiteElo "2324"]
[BlackElo "2028"]
[Annotator "NA"]
[PlyCount "60"]
[EventDate "2018.07.06"]
[EventType "swiss"]
[EventCountry "SRB"]
[SourceTitle "playchess.com"]
[Source "ChessBase"]
[SourceQuality "1"]
[TimeControl "5400+30"]

1. d4 {[%emt 0:00:00]} Nf6 {[%emt 0:00:00]} 2. Nf3 {[%emt 0:00:00]} g6 {[%emt 0:00:00]} 3. Bf4 {[%emt 0:00:00]} Bg7 {[%emt 0:00:02]} 4. e3 {[%emt 0:00:00]} O-O {[%emt 0:00:30]} 5. Be2 {[%emt 0:00:08]} d6 {[%emt 0:00:18]} 6. h3 {[%emt 0:00:06]} c5 {[%emt 0:00:16]} 7. c3 {[%emt 0:00:12]} Nc6 {[%emt 0:00:21]} 8. O-O {[%emt 0:01:14]} Nd5 {[%emt 0:01:01]} 9. Bh2 {[%emt 0:00:59]} e5 {[%emt 0:01:14]} 10. dxc5 {[%emt 0:12:35]} dxc5 {[%emt 0:01:21]} 11. Nbd2 {[%emt 0:05:22]} Qe7 {[%emt 0:09:25]} 12. Qc2 {[%emt 0:01:58]} Re8 {[%emt 0:05:56]} 13. Bd3 {[%emt 0:09:37]} Ndb4 {[%emt 0:20:13]} 14. cxb4 {[%emt 0:02:22]} Nxb4 {[%emt 0:00:05]} 15. Qb3 {[%emt 0:02:39]} Nxd3 {[%emt 0:01:24]} 16. Qxd3 {[%emt 0:00:38]} e4 {[%emt 0:00:46]} 17. Qxe4 {[%emt 0:14:11]} Qxe4 {[%emt 0:00:09]} 18. Nxe4 {[%emt 0:00:03]} Rxe4 {[%emt 0:00:05]} 19. Rad1 {[%emt 0:01:36]} Re8 {[%emt 0:04:00]} 20. b3 {[%emt 0:03:18]} Be6 {[%emt 0:07:53]} 21. Ng5 {[%emt 0:02:44]} Bf5 {[%emt 0:08:46]} 22. g4 {[%emt 0:00:56]} Bc8 {[%emt 0:00:12]} 23. Rd5 {[%emt 0:16:47]} h6 {[%emt 0:03:29]} 24. Nf3 {[%emt 0:00:11]} b6 {[%emt 0:01:26]} 25. Nd2 {[%emt 0:00:27]} Be6 {[%emt 0:02:39]} 26. Rd6 {[%emt 0:00:23]} Red8 {[%emt 0:04:03]} 27. Nc4 {[%emt 0:03:59]} Bf8 {[%emt 0:15:00]} 28. Rdd1 {[%emt 0:00:55]} b5 {[%emt 0:03:38]} 29. Nd6 {[%emt 0:01:23]} Bxd6 {[%emt 0:01:02]} 30. Bxd6 {[%emt 0:00:17]} c4 {[%emt 0:00:21]} 1/2-1/2

[Event "XI Paracin Festival 2018"]
[Site "Paracin"]
[Date "2018.07.09"]
[Round "4"]
[White "Konaplev, Anton"]
[Black "Yilmazyerli, Mert"]
[Result "1/2-1/2"]
[ECO "B06"]
[WhiteElo "2316"]
[BlackElo "2491"]
[Annotator "ChessBase"]
[PlyCount "58"]
[EventDate "2018.07.06"]
[EventType "swiss"]
[EventCountry "SRB"]
[SourceTitle "playchess.com"]
[Source "ChessBase"]
[SourceQuality "1"]
[TimeControl "5400+30"]

1. d4 {[%emt 0:00:00]} g6 {[%emt 0:00:00]} 2. e4 {[%emt 0:00:00]} Bg7 {[%emt 0:00:00]} 3. Nc3 {[%emt 0:00:01]} d6 {[%emt 0:00:00]} 4. Bg5 {[%emt 0:00:14]} a6 {[%emt 0:00:19]} 5. Qd2 {[%emt 0:00:18]} b5 {[%emt 0:00:23]} 6. a4 {[%emt 0:00:16]} b4 {[%emt 0:00:26]} 7. Nd5 {[%emt 0:00:06]} a5 {[%emt 0:00:28]} 8. Ne3 {[%emt 0:00:47]} Nf6 {[%emt 0:02:34]} 9. Bd3 {[%emt 0:00:51]} O-O {[%emt 0:01:57]} 10. Ne2 {[%emt 0:01:26]} Nbd7 {[%emt 0:02:13]} 11. O-O {[%emt 0:06:54]} h6 {[%emt 0:02:10]} 12. Bh4 {[%emt 0:03:35]} e5 {[%emt 0:00:24]} 13. c3 {[%emt 0:11:47]} exd4 {[%emt 0:10:08]} 14. cxd4 {[%emt 0:01:22]} c5 {[%emt 0:00:05]} 15. Nc4 {[%emt 0:07:18]} cxd4 {[%emt 0:03:03]} 16. Nxd6 {[%emt 0:10:29]} Ne5 {[%emt 0:01:26]} 17. Nxc8 {[%emt 0:06:24]} Rxc8 {[%emt 0:03:51]} 18. Bxf6 {[%emt 0:10:23]} Qxf6 {[%emt 0:02:53]} 19. f4 {[%emt 0:03:15]} Ng4 {[%emt 0:08:14]} 20. e5 {[%emt 0:04:18]} Qb6 {[%emt 0:01:40]} 21. Rfc1 {[%emt 0:03:49]} Ne3 {[%emt 0:09:47]} 22. Ng3 {[%emt 0:04:37]} g5 {[%emt 0:04:22]} 23. fxg5 {[%emt 0:03:42]} Qe6 {[%emt 0:04:35]} 24. gxh6 {[%emt 0:07:25]} Bxh6 {[%emt 0:01:52]} 25. Rxc8 {[%emt 0:01:45]} Rxc8 {[%emt 0:00:09]} 26. Qe2 {[%emt 0:01:03]} Rc5 {[%emt 0:03:49]} 27. Ne4 {[%emt 0:04:18]} Rxe5 {[%emt 0:00:24]} 28. Qf3 {[%emt 0:00:15]} f5 {[%emt 0:04:06]} 29. Ng3 {[%emt 0:02:47]} Qd5 {[%emt 0:20:33]} 1/2-1/2

[Event "XI Paracin Festival 2018"]
[Site "Paracin"]
[Date "2018.07.09"]
[Round "4"]
[White "Avalyan, Artur"]
[Black "Milanovic, Danilo"]
[Result "0-1"]
[ECO "A58"]
[WhiteElo "2315"]
[BlackElo "2471"]
[Annotator "ChessBase"]
[PlyCount "112"]
[EventDate "2018.07.06"]
[EventType "swiss"]
[EventCountry "SRB"]
[SourceTitle "playchess.com"]
[Source "ChessBase"]
[SourceQuality "1"]
[TimeControl "5400+30"]

1. d4 {[%emt 0:00:00]} Nf6 {[%emt 0:06:43]} 2. c4 {[%emt 0:00:00]} c5 {[%emt 0:00:09]} 3. d5 {[%emt 0:00:05]} b5 {[%emt 0:00:08]} 4. cxb5 {[%emt 0:00:17]} a6 {[%emt 0:00:09]} 5. bxa6 {[%emt 0:00:05]} g6 {[%emt 0:00:24]} 6. Nc3 {[%emt 0:00:08]} Bxa6 {[%emt 0:00:38]} 7. e4 {[%emt 0:00:08]} Bxf1 {[%emt 0:00:11]} 8. Kxf1 {[%emt 0:00:02]} d6 {[%emt 0:00:16]} 9. Nf3 {[%emt 0:00:11]} Nbd7 {[%emt 0:00:41]} 10. g3 {[%emt 0:00:14]} Bg7 {[%emt 0:00:07]} 11. Kg2 {[%emt 0:00:04]} O-O {[%emt 0:00:28]} 12. a4 {[%emt 0:00:51]} Ra6 {[%emt 0:00:19]} 13. Qc2 {[%emt 0:00:49]} Qa8 {[%emt 0:07:11]} 14. Ra3 {[%emt 0:01:39]} Nb6 {[%emt 0:19:02]} 15. Rd1 {[%emt 0:12:07]} Rc8 {[%emt 0:19:41]} 16. b3 {[%emt 0:03:14]} Nfd7 {[%emt 0:12:21]} 17. Bb2 {[%emt 0:13:57]} Ne5 {[%emt 0:04:59]} 18. Nxe5 {[%emt 0:01:21]} Bxe5 {[%emt 0:00:07]} 19. Rda1 {[%emt 0:19:15]} Qb7 {[%emt 0:03:00]} 20. Nb5 {[%emt 0:03:00]} Bxb2 {[%emt 0:04:49]} 21. Qxb2 {[%emt 0:00:10]} Nd7 {[%emt 0:09:17]} 22. Qc2 {[%emt 0:02:46]} Rb6 {[%emt 0:00:24]} 23. h4 {[%emt 0:03:11]} Nf6 {[%emt 0:01:16]} 24. Rd1 {[%emt 0:01:08]} h5 {[%emt 0:04:52]} 25. f3 {[%emt 0:01:46]} Ne8 {[%emt 0:00:11]} 26. Rd3 {[%emt 0:05:55]} Ra8 {[%emt 0:00:41]} 27. Ra2 {[%emt 0:00:53]} Nc7 {[%emt 0:01:02]} 28. Nxc7 {[%emt 0:00:11]} Qxc7 {[%emt 0:00:04]} 29. Rc3 {[%emt 0:00:22]} Qb7 {[%emt 0:00:14]} 30. Ra3 {[%emt 0:01:02]} Rb4 {[%emt 0:01:46]} 31. Rc4 {[%emt 0:09:11]} Rb8 {[%emt 0:00:22]} 32. Rc3 {[%emt 0:08:30]} Qa6 {[%emt 0:00:44]} 33. Ra2 {[%emt 0:00:12]} Qb6 {[%emt 0:02:01]} 34. Ra3 {[%emt 0:03:01]} Qa6 {[%emt 0:00:27]} 35. Qd3 {[%emt 0:02:47]} Qa5 {[%emt 0:00:21]} 36. Ra2 {[%emt 0:00:52]} Rd4 {[%emt 0:00:48]} 37. Qe3 {[%emt 0:00:05]} Kg7 {[%emt 0:00:54]} 38. Rac2 {[%emt 0:00:52]} Qb4 {[%emt 0:00:48]} 39. Rd2 {[%emt 0:01:20]} Rb7 {[%emt 0:00:48]} 40. Rcd3 {[%emt 0:00:37]} Rxd3 {[%emt 0:00:19]} 41. Rxd3 {[%emt 0:00:02]} Qa3 {[%emt 0:00:18]} 42. Kh3 {[%emt 0:06:13]} Qa1 {[%emt 0:01:01]} 43. Kg2 {[%emt 0:00:46]} Qa3 {[%emt 0:00:47]} 44. Kh3 {[%emt 0:00:23]} Rb4 {[%emt 0:00:18]} 45. f4 {[%emt 0:01:54]} Qa1 {[%emt 0:00:25]} 46. Kg2 {[%emt 0:00:15]} Qb2+ {[%emt 0:00:56]} 47. Kf3 {[%emt 0:00:02]} Qb1 {[%emt 0:00:28]} 48. Kg2 {[%emt 0:00:16]} Qb2+ {[%emt 0:00:14]} 49. Kf3 {[%emt 0:00:04]} Qh2 {[%emt 0:00:30]} 50. Rd1 {[%emt 0:01:02]} Qc2 {[%emt 0:00:47]} 51. Rd3 {[%emt 0:00:07]} Kh7 {[%emt 0:00:28]} 52. f5 {[%emt 0:01:50]} c4 {[%emt 0:00:30]} 53. fxg6+ {[%emt 0:00:08]} fxg6 {[%emt 0:00:01]} 54. bxc4 {[%emt 0:00:21]} Rb2 {[%emt 0:00:40]} 55. e5 {[%emt 0:01:11]} Qg2+ {[%emt 0:00:06]} 56. Kf4 {[%emt 0:00:02]} Rf2+ {[%emt 0:00:12]} 0-1

[Event "XI Paracin Festival 2018"]
[Site "Paracin"]
[Date "2018.07.09"]
[Round "4"]
[White "Dimitrov, Vladimir"]
[Black "Rahul Srivatshav P"]
[Result "1/2-1/2"]
[ECO "E70"]
[WhiteElo "2308"]
[BlackElo "2397"]
[Annotator "NA"]
[PlyCount "71"]
[EventDate "2018.07.06"]
[EventType "swiss"]
[EventCountry "SRB"]
[SourceTitle "playchess.com"]
[Source "ChessBase"]
[SourceQuality "1"]
[TimeControl "5400+30"]

1. d4 {[%emt 0:00:00]} Nf6 {[%emt 0:00:00]} 2. c4 {[%emt 0:00:00]} g6 {[%emt 0:00:00]} 3. Nc3 {[%emt 0:00:00]} Bg7 {[%emt 0:00:00]} 4. e4 {[%emt 0:00:00]} O-O {[%emt 0:00:00]} 5. h3 {[%emt 0:00:34]} d6 {[%emt 0:00:09]} 6. Be3 {[%emt 0:00:10]} Na6 {[%emt 0:00:07]} 7. Nf3 {[%emt 0:00:26]} e5 {[%emt 0:00:06]} 8. d5 {[%emt 0:00:15]} c6 {[%emt 0:00:06]} 9. g4 {[%emt 0:06:43]} Nc5 {[%emt 0:00:22]} 10. Qc2 {[%emt 0:03:27]} a5 {[%emt 0:06:45]} 11. O-O-O {[%emt 0:03:21]} Qe7 {[%emt 0:16:47]} 12. Nd2 {[%emt 0:11:52]} a4 {[%emt 0:02:13]} 13. a3 {[%emt 0:01:04]} Bd7 {[%emt 0:08:41]} 14. Be2 {[%emt 0:03:43]} cxd5 {[%emt 0:14:39]} 15. exd5 {[%emt 0:02:24]} b6 {[%emt 0:16:43]} 16. Rdg1 {[%emt 0:06:47]} Ne8 {[%emt 0:01:42]} 17. h4 {[%emt 0:04:59]} f5 {[%emt 0:01:05]} 18. f3 {[%emt 0:01:19]} e4 {[%emt 0:05:03]} 19. fxe4 {[%emt 0:03:56]} fxe4 {[%emt 0:00:23]} 20. h5 {[%emt 0:03:33]} Qe5 {[%emt 0:01:53]} 21. hxg6 {[%emt 0:01:09]} hxg6 {[%emt 0:02:13]} 22. Ndxe4 {[%emt 0:04:09]} Nf6 {[%emt 0:07:31]} 23. Nxf6+ {[%emt 0:03:08]} Rxf6 {[%emt 0:00:07]} 24. Rh3 {[%emt 0:01:33]} Nb3+ {[%emt 0:00:06]} 25. Kb1 {[%emt 0:00:09]} Nd4 {[%emt 0:00:03]} 26. Qd3 {[%emt 0:04:26]} Nxe2 {[%emt 0:00:07]} 27. Qxe2 {[%emt 0:00:10]} Raf8 {[%emt 0:00:12]} 28. Ka2 {[%emt 0:01:07]} R6f7 {[%emt 0:01:13]} 29. Rgg3 {[%emt 0:08:20]} b5 {[%emt 0:04:04]} 30. cxb5 {[%emt 0:00:19]} Rc8 {[%emt 0:00:07]} 31. Qd3 {[%emt 0:03:04]} Rxc3 {[%emt 0:04:05]} 32. bxc3 {[%emt 0:00:15]} Bxb5 {[%emt 0:00:23]} 33. Qxb5 {[%emt 0:00:55]} Qxc3 {[%emt 0:00:05]} 34. Qe8+ {[%emt 0:02:10]} Rf8 {[%emt 0:00:05]} 35. Qe6+ {[%emt 0:00:36]} Rf7 {[%emt 0:00:05]} 36. Qe8+ 1/2-1/2